fUST/lending_fUST_20250209
["ID","MTS","AMOUNT","RATE_DAILY","PERIOD"]
[352400286,1739083841295,-505.72839055,0.00010958,2]
[352400288,1739083841305,-500.0,0.00010958,2]
[352400290,1739083841315,-500.0,0.00010958,2]
[352400292,1739083841323,-501.20002595,0.00010958,2]
[352400294,1739083841333,-500.0,0.00010958,2]
[352400296,1739083841343,-500.0,0.00010958,2]
[352400298,1739083841353,-635.56127252,0.00010958,2]
[352400300,1739083841362,-505.97629241,0.00010958,2]
[352400302,1739083841371,-500.93798173,0.00010958,2]
[352400304,1739083841380,-500.0,0.00010958,2]
[352400306,1739083841389,-500.0,0.00010958,2]
[352400308,1739083841399,-502.12483665,0.00010958,2]
[352400310,1739083841408,-500.0,0.00010958,2]
[352400312,1739083841418,-500.0,0.00010958,2]
[352400314,1739083841428,-500.0,0.00010958,2]
[352400316,1739083841437,-502.30258222,0.00010958,2]
[352400318,1739083841447,-500.0,0.00010958,2]
[352400320,1739083841456,-243.8310174,0.00010958,2]
[352400322,1739083841465,-502.76898071,0.00010958,2]
[352400324,1739083841474,-351.16467778,0.00010958,2]
[352400326,1739083841484,-501.51332378,0.00010958,2]
[352400328,1739083841494,-502.17448239,0.00010958,2]
[352400330,1739083841502,-511.6458087,0.00010958,2]
[352400332,1739083841512,-500.0,0.00010958,2]
[352400334,1739083841522,-500.0,0.00010958,2]
[352400336,1739083841533,-500.0,0.00010958,2]
[352400338,1739083841542,-500.0,0.00010958,2]
[352400340,1739083841551,-501.00481604,0.00010958,2]
[352400342,1739083841561,-374.1854022,0.00010958,2]
[352400344,1739083841569,-524.27812493,0.00010958,2]
[352400346,1739083841579,-500.0,0.00010958,2]
[352400348,1739083841588,-501.17281978,0.00010958,2]
[352400350,1739083841599,-500.58752298,0.00010958,2]
[352400352,1739083841608,-501.53972634,0.00010958,2]
[352400354,1739083841618,-10000.0,0.00010958,2]
[352400356,1739083841627,-500.0,0.00010958,2]
[352400358,1739083841636,-491.22430407,0.00010958,2]
[352400360,1739083841647,-500.0,0.00010958,2]
[352400362,1739083841656,-503.06164327,0.00010958,2]
[352400364,1739083841665,-500.70978904,0.00010958,2]
[352400366,1739083841674,-500.0,0.00010958,2]
[352400368,1739083841684,-503.20759004,0.00010958,2]
[352400370,1739083841694,-500.0,0.00010958,2]
[352400372,1739083841703,-500.0,0.00010958,2]
[352400374,1739083841712,-503.04908576,0.00010958,2]
[352400376,1739083841721,-500.0,0.00010958,2]
[352400378,1739083841731,-500.0,0.00010958,2]
[352400380,1739083841740,-505.95808398,0.00010958,2]
[352400382,1739083841750,-310.32596458,0.00010958,2]
[352400661,1739083843881,-190.37250415,0.00010958,2]
[352400663,1739083843892,-500.0,0.00010958,2]
[352400665,1739083843902,-190.45379209,0.00010958,2]
[352400667,1739083843913,-500.0,0.00010958,2]
[352400669,1739083843924,-500.0,0.00010958,2]
[352400671,1739083843937,-500.0,0.00010958,2]
[352400674,1739083843948,-218.61114183,0.00010958,2]
[352400676,1739083843959,-500.0,0.00010958,2]
[352400679,1739083843969,-500.0,0.00010958,2]
[352400681,1739083843981,-502.85116941,0.00010958,2]
[352400682,1739083843992,-500.0,0.00010958,2]
[352400685,1739083844003,-500.0,0.00010958,2]
[352400687,1739083844013,-500.0,0.00010958,2]
[352400689,1739083844023,-500.96774445,0.00010958,2]
[352400690,1739083844034,-500.0,0.00010958,2]
[352400692,1739083844051,-500.0,0.00010958,2]
[352400695,1739083844061,-500.0,0.00010958,2]
[352400696,1739083844071,-500.0,0.00010958,2]
[352400698,1739083844084,-500.0,0.00010958,2]
[352400700,1739083844095,-500.0,0.00010958,2]
[352400702,1739083844105,-190.40585919,0.00010958,2]
[352400704,1739083844115,-500.0,0.00010958,2]
[352400706,1739083844125,-500.0,0.00010958,2]
[352400708,1739083844136,-500.0,0.00010958,2]
[352400710,1739083844146,-500.0,0.00010958,2]
[352400712,1739083844157,-501.76771038,0.00010958,2]
[352400714,1739083844167,-500.0,0.00010958,2]
[352400716,1739083844177,-501.41569596,0.00010958,2]
[352400718,1739083844186,-500.0,0.00010958,2]
[352400720,1739083844196,-187.74850341,0.00010958,2]
[352400722,1739083844207,-501.52938997,0.00010958,2]
[352400724,1739083844216,-500.0,0.00010958,2]
[352400726,1739083844226,-501.05408678,0.00010958,2]
[352400729,1739083844236,-500.85364675,0.00010958,2]
[352400731,1739083844246,-500.0,0.00010958,2]
[352400732,1739083844256,-500.0,0.00010958,2]
[352400734,1739083844267,-500.0,0.00010958,2]
[352400735,1739083844277,-500.0,0.00010958,2]
[352400736,1739083844290,-501.20855293,0.00010958,2]
[352400737,1739083844300,-496.38532984,0.00010958,2]
[352400738,1739083844310,-231.00758877,0.00010958,2]
[352400739,1739083844320,-500.0,0.00010958,2]
[352400740,1739083844330,-500.0,0.00010958,2]
[352400741,1739083844339,-500.0,0.00010958,2]
[352400742,1739083844349,-573.66225018,0.00010958,2]
[352400743,1739083844359,-501.67134132,0.00010958,2]
[352400744,1739083844369,-500.0,0.00010958,2]
[352400745,1739083844379,-500.0,0.00010958,2]
[352400746,1739083844389,-127.58012469,0.00010958,2]
[352400747,1739083844425,-109.948012,0.00010958,2]
[352400989,1739083846849,-263.13966986,0.00010958,2]
[352400991,1739083846859,-361.64299164,0.00010958,2]
[352404388,1739084006251,3000.0,0.00014,30]
[352404389,1739084043168,1635.28810461,9.629e-05,2]
[352404390,1739084051985,222.38,8.003e-05,2]
[352404391,1739084125631,6.77176079,9.629e-05,2]
[352404392,1739084125665,3710.50812236,9.629e-05,2]
[352404394,1739084492247,152.3083726,9.601e-05,5]
[352404395,1739084581601,228.60005069,9.629e-05,2]
[352404396,1739084896395,4012.17100194,9.606e-05,2]
[352404397,1739084935165,250.0,9.443e-05,2]
[352404499,1739085032193,-300.0,9.703e-05,2]
[352404501,1739085032203,-206.4891827,9.704e-05,2]
[352404503,1739085032213,-10949.10643886,9.704e-05,2]
[352404505,1739085032225,-134071.32827894,9.704e-05,2]
[352405077,1739085037877,-1540.28423873,9.704e-05,2]
[352405089,1739085037987,-32855.63322353,9.704e-05,2]
[352409490,1739085347276,283.36729684,9.603e-05,2]
[352409491,1739085507212,5075.0,0.00014,30]
[352409492,1739085603736,5000.99,0.00014,30]
[352409501,1739086070219,11363.04515557,9.019e-05,2]
[352409502,1739086070255,13536.95484443,9.019e-05,2]
[352409550,1739086232115,-300.0,9.703e-05,2]
[352409552,1739086232126,-774.8985,9.704e-05,2]
[352409554,1739086238080,-1088.31219625,9.704e-05,2]
[352409569,1739086240121,-2516.90000002,9.704e-05,2]
[352409570,1739086240133,-722.92988863,9.704e-05,2]
[352409571,1739086240145,-2211.58873453,9.704e-05,2]
[352409601,1739086243008,-9965.24277948,9.704e-05,2]
[352409603,1739086243020,-877.02708408,9.704e-05,2]
[352409680,1739086434077,6017.020893,9.436e-05,2]
[352409682,1739086684026,202.2368799,9.286e-05,2]
[352409683,1739086707475,243.78738267,9.36e-05,2]
[352409684,1739086707514,2322.58697103,9.36e-05,2]
[352409685,1739086708282,4824.2259203,9.5e-05,2]
[352409686,1739086720318,2002.05955385,1e-05,2]
[352409688,1739086811239,1450.6836398,9.261e-05,2]
[352409689,1739086870179,327.1828162,9.277e-05,2]
[352409690,1739086898063,2900.0,8.22e-05,2]
[352409691,1739086899659,2900.0,9.59e-05,2]
[352409692,1739087010199,3273.26109882,9.535e-05,2]
[352409693,1739087010232,20000.0,9.535e-05,2]
[352409694,1739087010266,1626.73890118,9.535e-05,2]
[352409697,1739087243879,2500.0,8.22e-05,2]
[352409698,1739087245489,2500.0,9.59e-05,2]
[352409775,1739087432478,-300.0,9.702e-05,2]
[352409777,1739087432488,-500.0,9.703e-05,2]
[352409779,1739087432498,-284.81050534,9.703e-05,2]
[352409781,1739087432511,-215.18949466,9.703e-05,2]
[352409783,1739087432520,-329.91056156,9.703e-05,2]
[352409786,1739087432529,-500.0,9.703e-05,2]
[352409789,1739087432538,-256.43,9.703e-05,2]
[352409792,1739087432548,-500.0,9.703e-05,2]
[352409795,1739087432557,-500.0,9.703e-05,2]
[352409798,1739087432566,-500.0,9.703e-05,2]
[352409801,1739087432575,-500.0,9.703e-05,2]
[352409804,1739087432585,-500.0,9.703e-05,2]
[352409807,1739087432594,-177.01839919,9.703e-05,2]
[352409810,1739087432603,-118.34191208,9.703e-05,2]
[352409812,1739087432615,-381.65808792,9.703e-05,2]
[352409814,1739087432625,-500.0,9.703e-05,2]
[352409816,1739087432634,-500.0,9.703e-05,2]
[352409818,1739087432643,-172.93275021,9.703e-05,2]
[352409820,1739087432655,-178.10425681,9.703e-05,2]
[352409822,1739087432666,-500.0,9.703e-05,2]
[352409823,1739087432675,-367.30490506,9.703e-05,2]
[352409905,1739087438234,-132.69509494,9.703e-05,2]
[352409907,1739087438247,-500.0,9.703e-05,2]
[352409909,1739087438259,-424.25442357,9.703e-05,2]
[352409911,1739087438269,-500.0,9.703e-05,2]
[352409914,1739087438280,-500.0,9.703e-05,2]
[352409918,1739087438293,-500.0,9.703e-05,2]
[352409921,1739087438304,-260.47512239,9.703e-05,2]
[352409924,1739087438314,-40658.70422371,9.704e-05,2]
[352410116,1739087440322,-44078.13596242,9.704e-05,2]
[352410727,1739087446291,-16181.080965,9.704e-05,2]
[352411567,1739087605411,3000.0,0.00014,30]
[352411568,1739087862048,13373.26109882,8.971e-05,2]
[352411569,1739087862090,11526.73890118,8.971e-05,2]
[352411574,1739088234565,13828.13840979,0.00014,30]
[352411575,1739088234588,36395.53771021,0.00014,30]
[352411739,1739088638289,-374.88029727,9.703e-05,2]
[352411741,1739088638298,-57410.03924241,9.703e-05,2]
[352414969,1739088776867,8473.26109882,9.139e-05,2]
[352414970,1739088776971,250.0,0.000184,120]
[352414971,1739088808631,101456.41987,0.00014,30]
[352414972,1739088878401,152.41,0.00014,31]
[352414973,1739088878459,152.41,0.00014,31]
[352414974,1739088878518,152.41,0.00014,31]
[352414975,1739088878574,152.41,0.00014,31]
[352414976,1739088878635,152.41,0.00014,31]
[352414977,1739088878676,152.41,0.00014,31]
[352414978,1739088878714,152.41,0.00014,31]
[352414979,1739088878753,152.41,0.00014,31]
[352414980,1739088878825,152.41,0.00014,31]
[352414982,1739089198236,642.34242621,0.00016,120]
[352414983,1739089353552,-3000.0,0.0001401,30]
[352414984,1739089353589,-3000.0,0.0001402,30]
[352414986,1739089482678,152.43,0.00014,31]
[352414987,1739089482900,152.43,0.00014,31]
[352414988,1739089482934,152.43,0.00014,31]
[352414989,1739089482989,152.43,0.00014,31]
[352414990,1739089483022,152.43,0.00014,31]
[352414991,1739089483053,152.43,0.00014,31]
[352414992,1739089483088,152.43,0.00014,31]
[352415001,1739089756142,-4047.54552882,8.82e-05,2]
[352415010,1739089832436,7146.0,0.00014,31]
[352415046,1739090086208,152.46,0.00014,31]
[352415047,1739090086266,152.46,0.00014,31]
[352415048,1739090086327,152.46,0.00014,31]
[352415049,1739090086392,152.46,0.00014,31]
[352415050,1739090086451,152.46,0.00014,31]
[352415051,1739090086509,152.46,0.00014,31]
[352415052,1739090086573,152.46,0.00014,31]
[352415053,1739090193355,-1575.15,0.00014027,30]
[352415054,1739090193391,-2000.0,0.00014027,30]
[352415055,1739090193426,-2000.0,0.00014027,30]
[352415056,1739090193460,-2000.0,0.00014027,30]
[352415057,1739090193495,-2000.0,0.00014027,30]
[352415058,1739090193531,-2000.0,0.00014027,30]
[352415059,1739090193564,-2000.0,0.00014027,30]
[352415060,1739090193598,-2000.0,0.00014027,30]
[352415061,1739090193632,-2000.0,0.00014027,30]
[352415062,1739090193668,-2000.0,0.00014027,30]
[352415063,1739090193865,-2000.0,0.00014027,28]
[352415064,1739090193905,-2000.0,0.00014027,28]
[352415065,1739090193942,-2000.0,0.00014027,28]
[352415066,1739090193980,-2000.0,0.00014027,28]
[352415067,1739090194016,-2000.0,0.00014027,28]
[352415068,1739090194051,-2000.0,0.00014027,28]
[352415069,1739090194090,-2000.0,0.00014027,28]
[352415070,1739090194126,-2000.0,0.00014027,28]
[352415071,1739090194162,-2000.0,0.00014027,28]
[352415072,1739090194197,-2000.0,0.00014027,28]
[352415073,1739090194232,-3000.0,0.0001403,30]
[352415074,1739090212985,12180.66197848,0.0001402,31]
[352415075,1739090256208,-3000.0,0.0001404,30]
[352415076,1739090256241,-3000.0,0.0001405,30]
[352415077,1739090256275,-3000.0,0.0001406,30]
[352415078,1739090256310,-3000.0,0.0001407,30]
[352415079,1739090256342,-3000.0,0.0001408,30]
[352415080,1739090256376,-3000.0,0.0001409,30]
[352415081,1739090256410,-3000.0,0.000141,30]
[352415082,1739090256445,-3000.0,0.0001411,30]
[352415083,1739090256482,-3000.0,0.0001412,30]
[352415084,1739090256517,-5440.993536,0.0001413,30]
[352415086,1739090572450,-71906.66050492,0.00015,30]
[352415087,1739090573789,-150000.0,0.00015,30]
[352415088,1739090961181,-3317.05666929,8.127e-05,2]
[352417767,1739091071041,353.20908347,8.003e-05,2]
[352418165,1739091075018,164.587531,0.000138,30]
[352418751,1739091207969,3000.0,0.00014,30]
[352418752,1739091208584,3000.0,0.0001401,30]
[352418753,1739091209161,3000.0,0.0001402,30]
[352418754,1739091209653,3000.0,0.0001403,30]
[352418756,1739091333350,3084.75170336,8.003e-05,2]
[352418758,1739091437341,200.0,8e-05,2]
[352418759,1739091448037,200.0,8e-05,2]
[352418762,1739091748822,9787.59448514,7.763e-05,2]
[352418763,1739091748857,9298.31152026,7.763e-05,2]
[352419819,1739091809408,1000.0,0.00016,120]
[352419979,1739091878211,1000.0,0.00016,120]
[352419980,1739091895118,152.51,0.00014,31]
[352419981,1739091895179,152.51,0.00014,31]
[352419982,1739091895240,152.51,0.00014,31]
[352419983,1739091895301,152.51,0.00014,31]
[352419984,1739091895356,152.51,0.00014,31]
[352419990,1739092166114,-200.0,8.2e-05,2]
[352419991,1739092166134,-200.0,8.2e-05,2]
[352419992,1739092166154,-300.0,8.339e-05,2]
[352419993,1739092166173,-7525.05594328,8.34e-05,2]
[352420035,1739092231879,-5384.70295419,8.34e-05,2]
[352420037,1739092231890,-300.0,8.72e-05,2]
[352420039,1739092231899,-12909.75889747,8.721e-05,2]
[352420041,1739092231909,-12909.75889747,8.939e-05,2]
[352420043,1739092231918,-2200.0,8.972e-05,2]
[352420045,1739092231928,-250.0,9e-05,2]
[352420047,1739092231936,-155.9866716,9.05e-05,2]
[352420049,1739092231946,-153.0,9.05e-05,2]
[352420072,1739092232093,-153.4618619,9.05e-05,2]
[352420075,1739092232102,-302.8932491,9.08e-05,2]
[352420078,1739092232111,-153.0,9.08e-05,2]
[352420080,1739092232121,-153.0,9.08e-05,2]
[352420082,1739092232130,-153.0,9.08e-05,2]
[352420084,1739092232139,-151.0,9.138e-05,2]
[352420087,1739092232149,-151.0,9.138e-05,2]
[352420090,1739092232158,-500.0,9.138e-05,2]
[352420093,1739092232167,-500.0,9.138e-05,2]
[352420096,1739092232177,-500.0,9.138e-05,2]
[352420099,1739092232186,-300.77542577,9.138e-05,2]
[352420102,1739092232195,-455.09980451,9.138e-05,2]
[352420105,1739092232204,-500.0,9.138e-05,2]
[352420108,1739092232213,-500.0,9.138e-05,2]
[352420111,1739092232223,-500.0,9.138e-05,2]
[352420114,1739092232232,-500.0,9.138e-05,2]
[352420117,1739092232242,-500.0,9.138e-05,2]
[352420120,1739092232251,-500.0,9.138e-05,2]
[352420123,1739092232260,-500.0,9.138e-05,2]
[352420126,1739092232269,-500.0,9.138e-05,2]
[352420129,1739092232278,-372.87875294,9.138e-05,2]
[352420132,1739092232287,-500.0,9.138e-05,2]
[352420135,1739092232296,-500.0,9.138e-05,2]
[352420138,1739092232305,-500.0,9.138e-05,2]
[352420141,1739092232314,-500.0,9.138e-05,2]
[352420144,1739092232323,-500.0,9.138e-05,2]
[352420147,1739092232332,-500.0,9.138e-05,2]
[352420150,1739092232341,-500.0,9.138e-05,2]
[352420152,1739092232350,-372.87875294,9.138e-05,2]
[352420154,1739092232359,-500.0,9.138e-05,2]
[352420158,1739092232369,-500.0,9.138e-05,2]
[352420161,1739092232378,-500.0,9.138e-05,2]
[352420164,1739092232387,-500.0,9.138e-05,2]
[352420166,1739092232396,-500.0,9.138e-05,2]
[352420168,1739092232405,-500.0,9.138e-05,2]
[352420170,1739092232414,-500.0,9.138e-05,2]
[352420172,1739092232423,-500.0,9.138e-05,2]
[352420174,1739092232433,-500.0,9.138e-05,2]
[352420176,1739092232442,-500.0,9.138e-05,2]
[352420178,1739092232451,-500.0,9.138e-05,2]
[352420179,1739092232459,-500.0,9.138e-05,2]
[352420180,1739092232477,-500.0,9.138e-05,2]
[352420181,1739092232489,-500.0,9.138e-05,2]
[352420182,1739092232499,-500.0,9.138e-05,2]
[352420183,1739092232508,-500.0,9.138e-05,2]
[352420184,1739092232519,-500.0,9.138e-05,2]
[352420185,1739092232529,-500.0,9.138e-05,2]
[352420186,1739092232539,-500.0,9.138e-05,2]
[352420187,1739092232549,-500.0,9.138e-05,2]
[352420188,1739092232558,-500.0,9.138e-05,2]
[352420189,1739092232568,-500.0,9.138e-05,2]
[352420190,1739092232578,-500.0,9.138e-05,2]
[352420191,1739092232587,-500.0,9.138e-05,2]
[352420192,1739092232597,-500.0,9.138e-05,2]
[352420193,1739092232607,-500.0,9.138e-05,2]
[352420194,1739092232616,-343.52828035,9.138e-05,2]
[352420195,1739092232626,-500.0,9.138e-05,2]
[352420196,1739092232635,-500.0,9.138e-05,2]
[352420197,1739092232645,-500.0,9.138e-05,2]
[352420198,1739092232655,-500.0,9.138e-05,2]
[352420199,1739092232665,-500.0,9.138e-05,2]
[352420200,1739092232675,-500.0,9.138e-05,2]
[352420201,1739092232685,-500.33738987,9.138e-05,2]
[352420202,1739092232695,-500.0,9.138e-05,2]
[352420203,1739092232705,-243.80141271,9.138e-05,2]
[352420204,1739092232716,-500.0,9.138e-05,2]
[352420205,1739092232728,-500.0,9.138e-05,2]
[352420206,1739092232738,-500.0,9.138e-05,2]
[352420207,1739092232748,-500.0,9.138e-05,2]
[352420208,1739092232759,-500.0,9.138e-05,2]
[352420209,1739092232769,-500.0,9.138e-05,2]
[352420211,1739092232779,-500.0,9.138e-05,2]
[352420213,1739092232789,-500.0,9.138e-05,2]
[352420215,1739092232798,-500.0,9.138e-05,2]
[352420217,1739092232808,-500.0,9.138e-05,2]
[352420218,1739092232818,-500.0,9.138e-05,2]
[352420219,1739092232827,-500.0,9.138e-05,2]
[352420220,1739092232838,-500.0,9.138e-05,2]
[352420221,1739092232847,-500.0,9.138e-05,2]
[352420222,1739092232857,-500.0,9.138e-05,2]
[352420223,1739092232866,-500.0,9.138e-05,2]
[352420225,1739092232876,-500.0,9.138e-05,2]
[352420226,1739092232885,-499.59768511,9.138e-05,2]
[352420227,1739092232895,-500.0,9.138e-05,2]
[352420229,1739092232905,-500.0,9.138e-05,2]
[352420231,1739092232915,-300.0,9.138e-05,2]
[352420232,1739092232924,-500.0,9.138e-05,2]
[352420233,1739092232934,-500.0,9.138e-05,2]
[352420234,1739092232944,-500.0,9.138e-05,2]
[352420235,1739092232953,-500.0,9.138e-05,2]
[352420236,1739092232963,-500.0,9.138e-05,2]
[352420237,1739092232973,-500.0,9.138e-05,2]
[352420238,1739092232986,-611.91396202,9.138e-05,2]
[352420239,1739092232995,-499.99999999,9.138e-05,2]
[352420240,1739092233005,-500.0,9.138e-05,2]
[352420241,1739092233016,-500.0,9.138e-05,2]
[352420242,1739092233025,-500.0,9.138e-05,2]
[352420243,1739092233035,-500.0,9.138e-05,2]
[352420244,1739092233044,-500.0,9.138e-05,2]
[352420245,1739092233054,-560.93225175,9.138e-05,2]
[352420246,1739092233064,-500.0,9.138e-05,2]
[352420247,1739092233074,-563.19925457,9.138e-05,2]
[352420248,1739092233084,-500.0,9.138e-05,2]
[352420249,1739092233094,-500.0,9.138e-05,2]
[352420250,1739092233103,-500.0,9.138e-05,2]
[352420251,1739092233113,-200.0,9.138e-05,2]
[352420252,1739092233123,-500.0,9.138e-05,2]
[352420253,1739092233132,-500.0,9.138e-05,2]
[352420254,1739092233143,-500.0,9.138e-05,2]
[352420255,1739092233152,-500.0,9.138e-05,2]
[352420256,1739092233162,-627.083,9.138e-05,2]
[352420257,1739092233171,-500.0,9.138e-05,2]
[352420258,1739092233180,-500.0,9.138e-05,2]
[352420259,1739092233190,-500.0,9.138e-05,2]
[352420260,1739092233200,-500.0,9.138e-05,2]
[352420261,1739092233210,-400.0,9.138e-05,2]
[352420262,1739092233220,-500.0,9.138e-05,2]
[352420263,1739092233230,-500.0,9.138e-05,2]
[352420264,1739092233240,-500.0,9.138e-05,2]
[352420265,1739092233250,-500.0,9.138e-05,2]
[352420266,1739092233259,-500.0,9.138e-05,2]
[352420267,1739092233269,-500.0,9.138e-05,2]
[352420268,1739092233279,-600.0,9.138e-05,2]
[352420269,1739092233289,-500.0,9.138e-05,2]
[352420270,1739092233299,-500.0,9.138e-05,2]
[352420271,1739092233309,-500.0,9.138e-05,2]
[352420272,1739092233321,-500.0,9.138e-05,2]
[352420273,1739092233332,-477.51062378,9.138e-05,2]
[352420274,1739092233342,-500.0,9.138e-05,2]
[352420275,1739092233352,-500.0,9.138e-05,2]
[352420276,1739092233362,-500.0,9.138e-05,2]
[352420277,1739092233372,-500.0,9.138e-05,2]
[352420278,1739092233382,-151.0,9.139e-05,2]
[352420279,1739092233392,-160168.99924871,9.139e-05,2]
[352420280,1739092233407,-40792.04581662,9.139e-05,2]
[352420281,1739092233417,-12909.75889747,9.197e-05,2]
[352420282,1739092233426,-801.91162,9.208e-05,2]
[352420283,1739092233436,-1836.32961966,9.208e-05,2]
[352420284,1739092233446,-153.0,9.36e-05,2]
[352420285,1739092233456,-669.97296437,9.4e-05,2]
[352420286,1739092233468,-12909.75889747,9.507e-05,2]
[352420287,1739092233478,-359.4439506,9.55e-05,2]
[352420288,1739092233488,-309.1472928,9.55e-05,2]
[352420289,1739092233498,-420.0,9.592e-05,2]
[352420290,1739092233508,-12909.75889747,9.596e-05,2]
[352420291,1739092233519,-1836.32961966,9.646e-05,2]
[352420292,1739092233528,-312.40024772,9.702e-05,2]
[352420293,1739092233538,-14866.58624523,9.703e-05,2]
[352420294,1739092233548,-151.0,9.703e-05,2]
[352420295,1739092233558,-151.0,9.704e-05,2]
[352420296,1739092233568,-33822.71854532,9.704e-05,2]
[352420297,1739092233577,-151.0,9.958e-05,2]
[352420298,1739092233587,-1836.32961966,9.983e-05,2]
[352420299,1739092233596,-3000.0,0.0001,2]
[352420300,1739092233606,-1000.0,0.0001,10]
[352420301,1739092233616,-151.0,0.0001,2]
[352420302,1739092233626,-12909.75889747,0.00010013,2]
[352420303,1739092233636,-396.0,0.00010037,2]
[352420304,1739092233645,-12909.75889747,0.00010155,2]
[352420305,1739092233656,-329.59881848,0.00010159,2]
[352420306,1739092233665,-153.0,0.00010299,2]
[352420307,1739092233675,-151.144,0.00010299,2]
[352420308,1739092233685,-150.094,0.00010299,2]
[352420309,1739092233694,-250.0,0.00010299,2]
[352420310,1739092233705,-231.269,0.00010299,2]
[352420311,1739092233718,-153.095,0.00010299,2]
[352420312,1739092233731,-263.376,0.00010299,2]
[352420313,1739092233741,-1973.0,0.00010299,2]
[352420314,1739092233751,-548.771,0.00010299,2]
[352420315,1739092233762,-2295.0,0.00010299,2]
[352420316,1739092233772,-2200.0,0.00010342,2]
[352420317,1739092233782,-1836.32961966,0.00010421,2]
[352420318,1739092233791,-587.0,0.00010551,2]
[352420319,1739092233802,-151.0,0.0001058,2]
[352420320,1739092233812,-600.0,0.00010651,2]
[352420321,1739092233822,-12909.75889747,0.00010668,2]
[352420322,1739092233832,-400.0,0.00010685,2]
[352420323,1739092233842,-1000.0,0.00010714,2]
[352420324,1739092233851,-151.0,0.0001073,2]
[352420325,1739092233861,-6164.27767091,0.00010758,2]
[352420326,1739092233871,-600.0,0.00010762,2]
[352420327,1739092233881,-151.0,0.00010858,2]
[352420328,1739092233890,-1836.32961966,0.00010858,2]
[352420329,1739092233900,-14309.18899669,0.00010858,2]
[352420330,1739092233909,-2791.16292535,0.00010858,2]
[352420331,1739092233920,-600.0,0.00010873,2]
[352420332,1739092233932,-12909.75889747,0.00010892,2]
[352420333,1739092233942,-15350.17728524,0.000109,2]
[352420334,1739092233951,-2278.7,0.000109,2]
[352420335,1739092233961,-151.0,0.000109,2]
[352420336,1739092233970,-1000.0,0.00010947,2]
[352420337,1739092233980,-500.0,0.00010957,2]
[352420338,1739092233990,-608.51661406,0.00010957,2]
[352420339,1739092234000,-500.0,0.00010957,2]
[352420340,1739092234009,-566.43688208,0.00010957,2]
[352420341,1739092234020,-884172.99131817,0.00010958,2]
[352420342,1739092234033,-2310.0,0.00010958,2]
[352420343,1739092234045,-1021.86804867,0.00010958,2]
[352420381,1739092237766,-260.33353977,9.702e-05,2]
[352420383,1739092237776,-405.67,0.00010037,2]
[352420385,1739092237785,-5080.75620372,0.00010958,2]
[352420387,1739092237799,-3682.81756739,0.00010958,2]
[352420450,1739092242908,-4536.1529285,0.00010958,2]
[352420549,1739092497327,152.52,0.00014,31]
[352420550,1739092497386,152.52,0.00014,31]
[352420552,1739092794324,3745.0,0.00016,120]
[352420561,1739093099895,152.55,0.00014,31]
[352420562,1739093099942,152.55,0.00014,31]
[352420563,1739093100006,152.55,0.00014,31]
[352420564,1739093100075,152.55,0.00014,31]
[352420565,1739093100137,152.55,0.00014,31]
[352420566,1739093100183,152.55,0.00014,31]
[352420567,1739093100258,152.55,0.00014,31]
[352420569,1739093216141,-286.34065975,8.618e-05,2]
[352420655,1739093432539,-1235.0,8.882e-05,2]
[352420657,1739093432551,-69.44078325,8.882e-05,2]
[352420658,1739093432560,-1800.0,8.972e-05,2]
[352420660,1739093432570,-6802.1327848,9.679e-05,2]
[352420662,1739093432579,-300.0,0.00010298,2]
[352420664,1739093432588,-150.0,0.00010299,2]
[352420666,1739093432598,-537.0,0.00010299,2]
[352420668,1739093432607,-1973.0,0.00010299,2]